[Event "106th British-ch 2019"]
[Site "Torquay"]
[Date "2019.08.01"]
[Round "6.17"]
[White "Willow, Jonah B"]
[Black "Rocco, Federico"]
[Result "1-0"]
[ECO "B55"]
[WhiteElo "2343"]
[BlackElo "2157"]
[Annotator "NA"]
[PlyCount "77"]
[EventDate "2019.07.27"]
[EventType "swiss"]
[EventCountry "GBR"]
[SourceTitle "playchess.com"]
[Source "ChessBase"]
[SourceQuality "1"]
[TimeControl "40/5400+30:1800+30"]

1. e4 {[%emt 0:00:00]} c5 {[%emt 0:00:00]} 2. Nf3 {[%emt 0:00:05]} d6 {[%emt 0:00:00]} 3. d4 {[%emt 0:00:00]} cxd4 {[%emt 0:00:00]} 4. Nxd4 {[%emt 0:00:00]} Nf6 {[%emt 0:00:00]} 5. f3 {[%emt 0:00:00]} e5 {[%emt 0:00:52]} 6. Nb3 {[%emt 0:00:00]} d5 {[%emt 0:00:17]} 7. Bg5 {[%emt 0:04:55]} Be6 {[%emt 0:04:58]} 8. Bxf6 {[%emt 0:00:07]} gxf6 {[%emt 0:00:09]} 9. exd5 {[%emt 0:00:39]} Qxd5 {[%emt 0:00:13]} 10. Qxd5 {[%emt 0:00:00]} Bxd5 {[%emt 0:00:43]} 11. Nc3 {[%emt 0:00:00]} Bc6 {[%emt 0:05:25]} 12. O-O-O {[%emt 0:00:00]} a6 {[%emt 0:06:10]} 13. Na5 {[%emt 0:05:41]} Be7 {[%emt 0:00:00]} 14. Bc4 {[%emt 0:00:00]} Rg8 {[%emt 0:19:54]} 15. Nd5 {[%emt 0:11:21]} Bd8 16. Nxc6 {[%emt 0:05:25]} Nxc6 {[%emt 0:02:55]} 17. Ne3 {[%emt 0:01:41]} Rc8 18. Kb1 {[%emt 0:03:39]} Be7 19. Bd3 {[%emt 0:01:52]} h5 20. Bh7 {[%emt 0:07:24]} Rg7 {[%emt 0:03:38]} 21. Be4 {[%emt 0:01:02]} b5 {[%emt 0:04:29]} 22. g4 {[%emt 0:00:30]} hxg4 {[%emt 0:11:48]} 23. fxg4 {[%emt 0:00:28]} Nd4 {[%emt 0:05:22]} 24. h4 {[%emt 0:05:04]} Ne6 {[%emt 0:00:00]} 25. h5 {[%emt 0:03:30]} Rd8 {[%emt 0:00:00]} 26. h6 {[%emt 0:01:34]} Rxd1+ {[%emt 0:00:00]} 27. Rxd1 {[%emt 0:00:55]} Rg8 28. c3 {[%emt 0:19:12]} Rh8 {[%emt 0:00:28]} 29. Nf5 {[%emt 0:01:41]} Nd8 {[%emt 0:00:31]} 30. a4 {[%emt 0:06:44]} bxa4 {[%emt 0:01:59]} 31. Bc2 {[%emt 0:01:44]} Ne6 {[%emt 0:02:32]} 32. Bxa4+ {[%emt 0:00:11]} Kf8 {[%emt 0:00:04]} 33. b4 {[%emt 0:03:10]} Rg8 {[%emt 0:00:46]} 34. Rd7 {[%emt 0:01:31]} Bd8 {[%emt 0:04:04]} 35. Ng7 {[%emt 0:01:54]} Be7 {[%emt 0:02:39]} 36. Ra7 {[%emt 0:01:15]} Nd8 {[%emt 0:00:21]} 37. Nf5 {[%emt 0:00:53]} Bxb4 {[%emt 0:01:07]} 38. cxb4 {[%emt 0:00:15]} Rxg4 {[%emt 0:00:05]} 39. h7 {[%emt 0:00:17]} 1-0

[Event "106th British-ch 2019"]
[Site "Torquay"]
[Date "2019.08.01"]
[Round "6.18"]
[White "Moore, Graham J"]
[Black "Hand, Freddie"]
[Result "1-0"]
[ECO "A11"]
[WhiteElo "2264"]
[BlackElo "2142"]
[Annotator "NA"]
[PlyCount "131"]
[EventDate "2019.07.27"]
[EventType "swiss"]
[EventCountry "GBR"]
[SourceTitle "playchess.com"]
[Source "ChessBase"]
[SourceQuality "1"]
[TimeControl "40/5400+30:1800+30"]

1. Nf3 {[%emt 0:00:01]} d5 {[%emt 0:00:00]} 2. c4 {[%emt 0:00:07]} c6 {[%emt 0:00:00]} 3. g3 {[%emt 0:00:05]} Nf6 {[%emt 0:00:00]} 4. Bg2 {[%emt 0:00:05]} dxc4 {[%emt 0:00:00]} 5. O-O {[%emt 0:00:07]} Nbd7 {[%emt 0:00:23]} 6. Qc2 {[%emt 0:00:05]} Nb6 {[%emt 0:00:08]} 7. Na3 {[%emt 0:00:09]} Be6 {[%emt 0:00:25]} 8. Ne5 {[%emt 0:00:14]} Qd4 {[%emt 0:01:25]} 9. Nxc6 {[%emt 0:02:55]} bxc6 {[%emt 0:00:04]} 10. Bxc6+ {[%emt 0:00:04]} Kd8 {[%emt 0:01:56]} 11. Bxa8 {[%emt 0:00:06]} Nxa8 {[%emt 0:00:17]} 12. Nb5 {[%emt 0:00:17]} Qd7 {[%emt 0:37:40]} 13. a4 {[%emt 0:02:54]} Nb6 {[%emt 0:28:56]} 14. d3 {[%emt 0:10:12]} cxd3 {[%emt 0:03:24]} 15. Qxd3 {[%emt 0:00:13]} Qxd3 {[%emt 0:02:04]} 16. exd3 {[%emt 0:00:27]} a6 {[%emt 0:01:19]} 17. Be3 {[%emt 0:08:13]} Nbd5 {[%emt 0:01:22]} 18. Nd4 {[%emt 0:05:18]} Bd7 {[%emt 0:05:26]} 19. Rfc1 {[%emt 0:00:06]} e5 {[%emt 0:03:33]} 20. Nc6+ {[%emt 0:05:48]} Bxc6 {[%emt 0:00:04]} 21. Rxc6 {[%emt 0:00:04]} Kd7 {[%emt 0:03:18]} 22. Rac1 {[%emt 0:03:41]} a5 {[%emt 0:02:12]} 23. Rc8 {[%emt 0:00:28]} Rg8 {[%emt 0:00:06]} 24. Ra8 {[%emt 0:08:33]} Bb4 {[%emt 0:02:38]} 25. Ra7+ {[%emt 0:00:38]} Ke6 {[%emt 0:01:16]} 26. Rc6+ {[%emt 0:01:25]} Kf5 {[%emt 0:00:06]} 27. Rxf7 {[%emt 0:00:16]} Ne7 {[%emt 0:00:31]} 28. g4+ {[%emt 0:03:01]} Kxg4 {[%emt 0:02:24]} 29. Re6 {[%emt 0:00:06]} Ng6 {[%emt 0:01:06]} 30. Rc6 {[%emt 0:01:02]} e4 {[%emt 0:01:47]} 31. d4 {[%emt 0:02:11]} Ne7 {[%emt 0:00:28]} 32. Re6 {[%emt 0:01:49]} Ned5 {[%emt 0:00:14]} 33. Kg2 {[%emt 0:00:49]} Kf5 {[%emt 0:01:22]} 34. Re5+ {[%emt 0:00:34]} Kg6 {[%emt 0:00:03]} 35. Rb7 {[%emt 0:00:42]} Nxe3+ {[%emt 0:00:25]} 36. fxe3 {[%emt 0:00:06]} Rc8 {[%emt 0:00:27]} 37. Rb6 {[%emt 0:01:03]} Kf7 {[%emt 0:00:44]} 38. d5 {[%emt 0:02:12]} Rc2+ {[%emt 0:00:14]} 39. Kf1 {[%emt 0:00:30]} Ng4 {[%emt 0:00:40]} 40. Rf5+ {[%emt 0:01:19]} Nf6 {[%emt 0:01:00]} 41. h4 {[%emt 0:33:27]} Rc1+ {[%emt 0:20:52]} 42. Ke2 {[%emt 0:00:00]} Rc2+ {[%emt 0:00:53]} 43. Kd1 {[%emt 0:00:00]} Rd2+ {[%emt 0:04:05]} 44. Kc1 {[%emt 0:00:00]} Rd3 {[%emt 0:00:05]} 45. h5 {[%emt 0:00:00]} Bd2+ {[%emt 0:00:47]} 46. Kc2 {[%emt 0:00:00]} Bxe3 {[%emt 0:00:03]} 47. Rb7+ {[%emt 0:00:00]} Kf8 {[%emt 0:00:22]} 48. d6 {[%emt 0:00:00]} Rd2+ {[%emt 0:01:11]} 49. Kb1 {[%emt 0:00:00]} Rxd6 {[%emt 0:00:30]} 50. Rxa5 {[%emt 0:00:00]} Re6 {[%emt 0:04:09]} 51. Ra8+ {[%emt 0:00:00]} Ne8 {[%emt 0:00:04]} 52. Kc2 {[%emt 0:00:00]} Bg5 {[%emt 0:02:08]} 53. Kd1 {[%emt 0:00:00]} e3 {[%emt 0:00:19]} 54. Ke2 {[%emt 0:00:00]} Rc6 {[%emt 0:01:03]} 55. Rbb8 {[%emt 0:00:00]} Re6 {[%emt 0:00:37]} 56. a5 {[%emt 0:00:00]} Bf4 {[%emt 0:00:30]} 57. Rc8 {[%emt 0:00:00]} Kf7 {[%emt 0:00:22]} 58. a6 {[%emt 0:00:00]} Nc7 {[%emt 0:00:06]} 59. Ra7 {[%emt 0:00:00]} Kf6 {[%emt 0:00:12]} 60. Rf8+ {[%emt 0:00:00]} Kg5 {[%emt 0:00:31]} 61. Rxc7 {[%emt 0:00:00]} Bxc7 {[%emt 0:00:37]} 62. a7 {[%emt 0:00:00]} Ra6 {[%emt 0:00:22]} 63. a8=Q {[%emt 0:00:00]} Rxa8 {[%emt 0:00:03]} 64. Rxa8 {[%emt 0:00:00]} Kxh5 {[%emt 0:00:04]} 65. Ra7 {[%emt 0:00:00]} Bb6 {[%emt 0:01:28]} 66. Rxg7 {[%emt 0:00:00]} 1-0

[Event "106th British-ch 2019"]
[Site "Torquay"]
[Date "2019.08.01"]
[Round "6.19"]
[White "Merriman, John"]
[Black "Modi, Shyam Jagdish"]
[Result "1/2-1/2"]
[ECO "E81"]
[WhiteElo "2226"]
[BlackElo "2098"]
[Annotator "NA"]
[PlyCount "49"]
[EventDate "2019.07.27"]
[EventType "swiss"]
[EventCountry "GBR"]
[SourceTitle "playchess.com"]
[Source "ChessBase"]
[SourceQuality "1"]
[TimeControl "40/5400+30:1800+30"]

1. d4 {[%emt 0:42:53]} Nf6 {[%emt 0:00:16]} 2. c4 {[%emt 0:00:04]} g6 {[%emt 0:00:15]} 3. Nc3 {[%emt 0:00:05]} Bg7 {[%emt 0:00:21]} 4. e4 {[%emt 0:00:06]} d6 {[%emt 0:00:16]} 5. f3 O-O {[%emt 0:00:49]} 6. Bg5 c5 {[%emt 0:00:46]} 7. d5 e6 {[%emt 0:00:38]} 8. Qd2 Qa5 {[%emt 0:02:28]} 9. a4 Na6 {[%emt 0:10:28]} 10. Nge2 exd5 {[%emt 0:06:44]} 11. cxd5 Nb4 {[%emt 0:06:18]} 12. Nc1 h6 {[%emt 0:09:45]} 13. Bf4 Qd8 {[%emt 0:07:48]} 14. Be2 Nh5 {[%emt 0:10:01]} 15. Be3 f5 {[%emt 0:05:41]} 16. O-O f4 {[%emt 0:07:00]} 17. Bf2 Be5 {[%emt 0:16:13]} 18. a5 g5 {[%emt 0:12:11]} 19. N3a2 Nxa2 {[%emt 0:19:31]} 20. Rxa2 g4 {[%emt 0:07:34]} 21. fxg4 {[%emt 0:04:20]} Nf6 {[%emt 0:00:06]} 22. Bh4 {[%emt 0:08:23]} Nxe4 {[%emt 0:03:41]} 23. Qe1 {[%emt 0:00:17]} Bd4+ {[%emt 0:12:21]} 24. Kh1 {[%emt 0:00:35]} Qe8 {[%emt 0:02:16]} 25. Qd1 {[%emt 0:30:10]} 1/2-1/2

[Event "106th British-ch 2019"]
[Site "Torquay"]
[Date "2019.08.01"]
[Round "6.20"]
[White "Yoon, Jacob D"]
[Black "Stoyanov, Viktor"]
[Result "0-1"]
[ECO "B15"]
[WhiteElo "1963"]
[BlackElo "2198"]
[Annotator "NA"]
[PlyCount "86"]
[EventDate "2019.07.27"]
[EventType "swiss"]
[EventCountry "GBR"]
[SourceTitle "playchess.com"]
[Source "ChessBase"]
[SourceQuality "1"]
[TimeControl "40/5400+30:1800+30"]

1. e4 {[%emt 0:00:00]} c6 {[%emt 0:00:00]} 2. d4 {[%emt 0:00:00]} d5 {[%emt 0:00:00]} 3. Nc3 {[%emt 0:00:00]} dxe4 {[%emt 0:00:00]} 4. Nxe4 {[%emt 0:00:00]} Nf6 {[%emt 0:00:05]} 5. Nxf6+ {[%emt 0:00:35]} exf6 {[%emt 0:00:06]} 6. c3 {[%emt 0:00:10]} Bd6 {[%emt 0:00:05]} 7. Bd3 {[%emt 0:00:13]} O-O {[%emt 0:00:06]} 8. Ne2 {[%emt 0:00:07]} Re8 {[%emt 0:00:07]} 9. O-O {[%emt 0:00:09]} Nd7 {[%emt 0:00:04]} 10. Bf4 {[%emt 0:00:08]} Nf8 {[%emt 0:00:04]} 11. Bg3 {[%emt 0:06:31]} Ng6 {[%emt 0:07:42]} 12. Qd2 {[%emt 0:01:28]} f5 {[%emt 0:08:33]} 13. Nf4 {[%emt 0:00:33]} Qg5 {[%emt 0:00:17]} 14. Rae1 {[%emt 0:03:43]} Be6 {[%emt 0:00:57]} 15. Re5 {[%emt 0:00:19]} Nxe5 {[%emt 0:00:56]} 16. dxe5 {[%emt 0:00:17]} Bxe5 {[%emt 0:00:16]} 17. Qc1 {[%emt 0:00:04]} Bxa2 {[%emt 0:01:55]} 18. c4 {[%emt 0:01:42]} Rad8 {[%emt 0:00:50]} 19. Rd1 {[%emt 0:00:21]} Bb3 {[%emt 0:00:10]} 20. Re1 {[%emt 0:00:06]} Bxf4 {[%emt 0:02:07]} 21. Rxe8+ {[%emt 0:00:04]} Rxe8 {[%emt 0:00:06]} 22. Bxf4 {[%emt 0:00:03]} Qd8 {[%emt 0:00:09]} 23. Qc3 {[%emt 0:00:24]} Qxd3 {[%emt 0:01:55]} 24. Qxd3 {[%emt 0:00:21]} Re1+ {[%emt 0:00:01]} 25. Qf1 {[%emt 0:00:00]} Rxf1+ {[%emt 0:00:09]} 26. Kxf1 {[%emt 0:00:07]} Bxc4+ {[%emt 0:00:02]} 27. Ke1 {[%emt 0:00:35]} Kf8 {[%emt 0:00:31]} 28. Kd2 {[%emt 0:00:04]} Ke7 {[%emt 0:00:04]} 29. Kc3 {[%emt 0:00:04]} Bd5 {[%emt 0:00:03]} 30. g3 {[%emt 0:00:04]} c5 {[%emt 0:00:33]} 31. Be3 {[%emt 0:02:03]} Kd6 {[%emt 0:00:07]} 32. Bf4+ {[%emt 0:00:03]} Kc6 {[%emt 0:00:05]} 33. Bb8 {[%emt 0:00:38]} a5 {[%emt 0:00:06]} 34. Bf4 {[%emt 0:00:06]} b5 {[%emt 0:00:09]} 35. Be5 {[%emt 0:00:05]} f6 {[%emt 0:00:04]} 36. Bf4 {[%emt 0:00:05]} Be4 {[%emt 0:00:21]} 37. Bb8 {[%emt 0:00:53]} a4 {[%emt 0:00:23]} 38. Ba7 {[%emt 0:00:31]} Kd5 {[%emt 0:00:16]} 39. Bb6 {[%emt 0:00:03]} b4+ {[%emt 0:00:06]} 40. Kd2 {[%emt 0:00:05]} Kc4 {[%emt 0:00:05]} 41. Bd8 {[%emt 0:30:19]} Kb3 {[%emt 0:30:10]} 42. Kc1 {[%emt 0:00:05]} a3 {[%emt 0:00:07]} 43. bxa3 {[%emt 0:00:04]} bxa3 {[%emt 0:00:23]} 0-1

[Event "106th British-ch 2019"]
[Site "Torquay"]
[Date "2019.08.01"]
[Round "6.21"]
[White "Crickmore, Neil Eg"]
[Black "Krzyzanowski, Patryk"]
[Result "1-0"]
[ECO "D74"]
[WhiteElo "2187"]
[BlackElo "2114"]
[Annotator "NA"]
[PlyCount "71"]
[EventDate "2019.07.27"]
[EventType "swiss"]
[EventCountry "GBR"]
[SourceTitle "playchess.com"]
[Source "ChessBase"]
[SourceQuality "1"]
[TimeControl "40/5400+30:1800+30"]

1. d4 {[%emt 0:01:45]} Nf6 {[%emt 0:00:00]} 2. Nf3 {[%emt 0:00:28]} d5 {[%emt 0:03:56]} 3. g3 {[%emt 0:00:12]} g6 {[%emt 0:01:27]} 4. Bg2 {[%emt 0:00:15]} Bg7 {[%emt 0:00:06]} 5. c4 {[%emt 0:00:39]} c6 {[%emt 0:01:16]} 6. cxd5 {[%emt 0:03:39]} Nxd5 {[%emt 0:01:45]} 7. O-O {[%emt 0:04:42]} O-O {[%emt 0:01:35]} 8. h3 {[%emt 0:09:48]} Qb6 {[%emt 0:02:53]} 9. e4 {[%emt 0:04:36]} Nf6 {[%emt 0:01:14]} 10. Nc3 {[%emt 0:00:10]} Rd8 {[%emt 0:00:36]} 11. Qc2 {[%emt 0:02:21]} e5 {[%emt 0:10:56]} 12. dxe5 {[%emt 0:02:19]} Nfd7 {[%emt 0:00:21]} 13. Be3 {[%emt 0:11:24]} Qa5 {[%emt 0:05:55]} 14. Rad1 {[%emt 0:03:29]} Re8 {[%emt 0:07:07]} 15. Bf4 {[%emt 0:13:09]} Na6 {[%emt 0:11:32]} 16. Kh2 {[%emt 0:01:58]} h6 {[%emt 0:02:35]} 17. a3 {[%emt 0:04:32]} g5 {[%emt 0:01:25]} 18. Be3 {[%emt 0:00:13]} Nxe5 {[%emt 0:01:41]} 19. Nxe5 {[%emt 0:01:02]} Qxe5 {[%emt 0:02:58]} 20. f4 {[%emt 0:04:54]} gxf4 {[%emt 0:01:22]} 21. gxf4 {[%emt 0:01:41]} Qh5 {[%emt 0:01:13]} 22. f5 {[%emt 0:00:40]} Be5+ {[%emt 0:01:43]} 23. Bf4 {[%emt 0:03:06]} Qh4 {[%emt 0:02:33]} 24. Bxe5 {[%emt 0:02:49]} Rxe5 {[%emt 0:00:08]} 25. Qd2 {[%emt 0:00:21]} Qf6 {[%emt 0:15:55]} 26. Ne2 {[%emt 0:01:17]} Nc5 {[%emt 0:01:13]} 27. Ng3 {[%emt 0:02:48]} b6 28. Rf4 {[%emt 0:08:04]} Ba6 {[%emt 0:06:48]} 29. Rg4+ {[%emt 0:06:39]} Kh7 {[%emt 0:00:19]} 30. Nh5 {[%emt 0:00:00]} Qh8 {[%emt 0:06:39]} 31. Qd6 {[%emt 0:00:00]} Ne6 {[%emt 0:01:43]} 32. Qe7 {[%emt 0:00:00]} Qf8 {[%emt 0:02:52]} 33. Nf6+ {[%emt 0:00:00]} Kh8 {[%emt 0:01:12]} 34. Rg8+ {[%emt 0:00:00]} Qxg8 {[%emt 0:00:06]} 35. Nxg8 {[%emt 0:00:00]} Kxg8 {[%emt 0:00:42]} 36. Qf6 {[%emt 0:01:30]} 1-0

[Event "106th British-ch 2019"]
[Site "Torquay"]
[Date "2019.08.01"]
[Round "6.22"]
[White "Holland, Chris Kd"]
[Black "Wall, Tim P"]
[Result "1-0"]
[ECO "A85"]
[WhiteElo "2143"]
[BlackElo "2246"]
[Annotator "NA"]
[PlyCount "71"]
[EventDate "2019.07.27"]
[EventType "swiss"]
[EventCountry "GBR"]
[SourceTitle "playchess.com"]
[Source "ChessBase"]
[SourceQuality "1"]
[TimeControl "40/5400+30:1800+30"]

1. c4 {[%emt 0:00:00]} f5 {[%emt 0:00:09]} 2. Nc3 {[%emt 0:00:00]} Nf6 {[%emt 0:00:13]} 3. d4 {[%emt 0:00:00]} d6 {[%emt 0:00:11]} 4. e3 {[%emt 0:13:07]} c6 {[%emt 0:03:37]} 5. Nf3 {[%emt 0:15:18]} g6 {[%emt 0:03:56]} 6. b4 {[%emt 0:05:36]} Bg7 {[%emt 0:01:19]} 7. Rb1 {[%emt 0:03:07]} O-O {[%emt 0:07:46]} 8. Qb3 {[%emt 0:00:48]} a5 {[%emt 0:27:32]} 9. c5+ {[%emt 0:21:47]} Kh8 {[%emt 0:01:58]} 10. Na4 {[%emt 0:08:21]} Nd5 {[%emt 0:05:44]} 11. b5 {[%emt 0:05:46]} dxc5 {[%emt 0:12:21]} 12. Nxc5 {[%emt 0:03:14]} b6 {[%emt 0:05:42]} 13. Na4 {[%emt 0:00:07]} Be6 {[%emt 0:03:32]} 14. Bd2 {[%emt 0:10:53]} Qd6 {[%emt 0:11:36]} 15. Qb2 {[%emt 0:01:28]} c5 {[%emt 0:02:33]} 16. Be2 {[%emt 0:00:12]} Nd7 {[%emt 0:00:20]} 17. O-O {[%emt 0:00:15]} N7f6 {[%emt 0:01:02]} 18. dxc5 {[%emt 0:00:52]} bxc5 {[%emt 0:00:21]} 19. Rfd1 {[%emt 0:03:40]} Ne4 {[%emt 0:01:12]} 20. Qc2 {[%emt 0:00:18]} g5 {[%emt 0:01:34]} 21. Bd3 {[%emt 0:01:47]} c4 {[%emt 0:02:12]} 22. Bxe4 {[%emt 0:00:41]} fxe4 {[%emt 0:00:07]} 23. Nxg5 {[%emt 0:00:38]} Bf5 {[%emt 0:01:37]} 24. Bc3 {[%emt 0:01:04]} Nxc3 {[%emt 0:02:56]} 25. Rxd6 {[%emt 0:00:04]} Nxb1 {[%emt 0:00:07]} 26. Rd5 {[%emt 0:01:03]} Na3 {[%emt 0:00:40]} 27. Qc1 {[%emt 0:00:37]} e6 {[%emt 0:00:11]} 28. Rc5 {[%emt 0:00:21]} Rad8 {[%emt 0:00:15]} 29. h4 {[%emt 0:00:46]} Rd3 {[%emt 0:00:20]} 30. b6 {[%emt 0:00:15]} Bg4 {[%emt 0:00:54]} 31. f3 {[%emt 0:00:20]} exf3 {[%emt 0:01:17]} 32. gxf3 {[%emt 0:00:03]} Bf5 {[%emt 0:00:49]} 33. e4 {[%emt 0:00:32]} Bd4+ {[%emt 0:00:10]} 34. Kg2 {[%emt 0:00:13]} Bxc5 {[%emt 0:01:00]} 35. Nxc5 {[%emt 0:00:03]} Bg6 {[%emt 0:01:11]} 36. Nxd3 {[%emt 0:00:10]} 1-0

[Event "106th British-ch 2019"]
[Site "Torquay"]
[Date "2019.08.01"]
[Round "6.23"]
[White "Player, Edmund C"]
[Black "Jones, Steven A"]
[Result "1/2-1/2"]
[ECO "C74"]
[WhiteElo "2202"]
[BlackElo "2117"]
[Annotator "NA"]
[PlyCount "88"]
[EventDate "2019.07.27"]
[EventType "swiss"]
[EventCountry "GBR"]
[SourceTitle "playchess.com"]
[Source "ChessBase"]
[SourceQuality "1"]
[TimeControl "40/5400+30:1800+30"]

1. e4 {[%emt 0:00:00]} e5 {[%emt 0:00:00]} 2. Nf3 {[%emt 0:00:00]} Nc6 {[%emt 0:00:11]} 3. Bb5 {[%emt 0:00:06]} a6 {[%emt 0:01:00]} 4. Ba4 {[%emt 0:00:03]} d6 {[%emt 0:00:53]} 5. c3 {[%emt 0:03:40]} f5 {[%emt 0:01:06]} 6. d3 {[%emt 0:07:22]} Be7 {[%emt 0:09:49]} 7. Qe2 {[%emt 0:07:02]} Nf6 {[%emt 0:10:29]} 8. Nbd2 {[%emt 0:03:03]} O-O {[%emt 0:11:09]} 9. h3 {[%emt 0:07:51]} Kh8 {[%emt 0:04:40]} 10. Nf1 {[%emt 0:03:27]} Nh5 {[%emt 0:16:26]} 11. g3 {[%emt 0:11:27]} fxe4 {[%emt 0:03:24]} 12. dxe4 {[%emt 0:00:28]} Qe8 {[%emt 0:00:20]} 13. Be3 {[%emt 0:10:03]} b5 {[%emt 0:12:49]} 14. Bc2 {[%emt 0:02:59]} Rb8 {[%emt 0:00:21]} 15. N1d2 {[%emt 0:04:55]} a5 {[%emt 0:04:00]} 16. Bd3 {[%emt 0:07:18]} b4 {[%emt 0:02:39]} 17. Bb5 {[%emt 0:06:03]} Bd7 {[%emt 0:00:04]} 18. c4 {[%emt 0:03:37]} g6 {[%emt 0:03:29]} 19. Bh6 {[%emt 0:05:33]} Ng7 {[%emt 0:00:02]} 20. Qd3 {[%emt 0:00:34]} Bf6 {[%emt 0:03:02]} 21. Kf1 {[%emt 0:06:21]} Rf7 {[%emt 0:00:53]} 22. Kg2 {[%emt 0:00:55]} Ne6 {[%emt 0:00:02]} 23. Be3 {[%emt 0:00:18]} Bg7 {[%emt 0:03:15]} 24. Raf1 {[%emt 0:03:11]} Qf8 {[%emt 0:00:41]} 25. h4 {[%emt 0:01:54]} h6 {[%emt 0:01:09]} 26. Ng1 {[%emt 0:01:25]} Kh7 {[%emt 0:03:26]} 27. Ne2 {[%emt 0:00:15]} Rd8 {[%emt 0:00:47]} 28. b3 {[%emt 0:00:21]} Nc5 {[%emt 0:00:34]} 29. Qb1 {[%emt 0:02:13]} h5 {[%emt 0:03:30]} 30. Nc1 {[%emt 0:00:51]} Bh6 {[%emt 0:00:29]} 31. Nd3 {[%emt 0:01:36]} Ne6 {[%emt 0:01:19]} 32. Bxh6 {[%emt 0:00:33]} Kxh6 {[%emt 0:00:02]} 33. Ne1 {[%emt 0:00:25]} Ned4 {[%emt 0:00:30]} 34. Ba4 {[%emt 0:00:07]} Kg7 {[%emt 0:00:45]} 35. Qd3 {[%emt 0:00:17]} Nb8 {[%emt 0:00:52]} 36. Bxd7 {[%emt 0:00:21]} Nxd7 {[%emt 0:00:04]} 37. Qe3 {[%emt 0:00:40]} Nf6 {[%emt 0:00:49]} 38. f3 {[%emt 0:00:09]} c5 {[%emt 0:00:08]} 39. Rf2 {[%emt 0:00:44]} Qe7 {[%emt 0:00:22]} 40. Rhf1 {[%emt 0:00:54]} Ra8 {[%emt 0:01:26]} 41. Qd3 {[%emt 0:02:50]} a4 {[%emt 0:03:51]} 42. Nc2 {[%emt 0:01:02]} axb3 {[%emt 0:02:03]} 43. axb3 {[%emt 0:00:35]} Ra2 {[%emt 0:01:38]} 44. Ne3 {[%emt 0:09:30]} Qb7 {[%emt 0:08:05]} 1/2-1/2

[Event "106th British-ch 2019"]
[Site "Torquay"]
[Date "2019.08.01"]
[Round "6.24"]
[White "Longson, Sarah N"]
[Black "Ogunshola, Olugbemiga (Ben)"]
[Result "0-1"]
[ECO "B06"]
[WhiteElo "2095"]
[BlackElo "2172"]
[Annotator "NA"]
[PlyCount "64"]
[EventDate "2019.07.27"]
[EventType "swiss"]
[EventCountry "GBR"]
[SourceTitle "playchess.com"]
[Source "ChessBase"]
[SourceQuality "1"]
[TimeControl "40/5400+30:1800+30"]

1. e4 {[%emt 0:00:00]} d6 {[%emt 0:00:37]} 2. d4 {[%emt 0:00:00]} g6 {[%emt 0:00:10]} 3. Nc3 {[%emt 0:00:41]} Bg7 {[%emt 0:00:09]} 4. Be3 {[%emt 0:01:06]} a6 {[%emt 0:07:02]} 5. f3 {[%emt 0:01:45]} Nd7 {[%emt 0:01:37]} 6. Qd2 {[%emt 0:00:45]} b5 {[%emt 0:00:15]} 7. h4 {[%emt 0:01:13]} Ngf6 {[%emt 0:03:51]} 8. O-O-O {[%emt 0:03:25]} Bb7 {[%emt 0:02:20]} 9. g4 {[%emt 0:05:42]} h6 {[%emt 0:05:30]} 10. Bh3 {[%emt 0:11:55]} c6 {[%emt 0:07:30]} 11. g5 {[%emt 0:06:41]} hxg5 {[%emt 0:01:05]} 12. hxg5 {[%emt 0:00:11]} Ng8 {[%emt 0:00:24]} 13. Bxd7+ {[%emt 0:07:37]} Qxd7 {[%emt 0:00:24]} 14. Rxh8 {[%emt 0:00:08]} Bxh8 {[%emt 0:00:02]} 15. Qh2 {[%emt 0:02:03]} Bg7 {[%emt 0:00:04]} 16. Qh7 {[%emt 0:02:16]} Kf8 {[%emt 0:00:05]} 17. Nh3 {[%emt 0:02:28]} d5 {[%emt 0:08:48]} 18. Nf2 {[%emt 0:02:18]} b4 {[%emt 0:11:22]} 19. Na4 {[%emt 0:01:48]} dxe4 {[%emt 0:01:20]} 20. fxe4 {[%emt 0:02:23]} Rd8 {[%emt 0:00:22]} 21. Nc5 {[%emt 0:01:15]} Qc7 {[%emt 0:00:03]} 22. Ng4 {[%emt 0:03:16]} Bc8 {[%emt 0:10:32]} 23. Nh6 {[%emt 0:01:53]} Nxh6 {[%emt 0:00:12]} 24. gxh6 {[%emt 0:00:06]} Bf6 {[%emt 0:00:17]} 25. Rf1 {[%emt 0:03:29]} Qg3 {[%emt 0:01:23]} 26. Kd2 {[%emt 0:08:40]} Bg4 {[%emt 0:01:07]} 27. Nd3 {[%emt 0:07:08]} Qg2+ {[%emt 0:02:28]} 28. Rf2 {[%emt 0:01:15]} Qxe4 {[%emt 0:00:07]} 29. Rxf6 {[%emt 0:03:07]} exf6 {[%emt 0:00:21]} 30. Qg7+ {[%emt 0:00:30]} Ke7 {[%emt 0:00:14]} 31. Nf2 {[%emt 0:10:52]} Rxd4+ {[%emt 0:02:33]} 32. Bxd4 {[%emt 0:00:04]} Qe2+ {[%emt 0:00:10]} 0-1

[Event "106th British-ch 2019"]
[Site "Torquay"]
[Date "2019.08.01"]
[Round "6.25"]
[White "Ledger, Dave J"]
[Black "Jaufarally, Nadia"]
[Result "1/2-1/2"]
[ECO "B38"]
[WhiteElo "2168"]
[BlackElo "1944"]
[Annotator "NA"]
[PlyCount "86"]
[EventDate "2019.07.27"]
[EventType "swiss"]
[EventCountry "GBR"]
[SourceTitle "playchess.com"]
[Source "ChessBase"]
[SourceQuality "1"]
[TimeControl "40/5400+30:1800+30"]

1. e4 {[%emt 0:00:00]} c5 {[%emt 0:00:00]} 2. Nf3 {[%emt 0:00:00]} g6 {[%emt 0:00:00]} 3. d4 {[%emt 0:00:07]} cxd4 {[%emt 0:00:00]} 4. Nxd4 {[%emt 0:00:03]} Nc6 {[%emt 0:00:05]} 5. c4 {[%emt 0:00:58]} Bg7 {[%emt 0:00:33]} 6. Be3 {[%emt 0:00:28]} d6 {[%emt 0:00:33]} 7. Nc3 {[%emt 0:03:08]} Qb6 {[%emt 0:00:43]} 8. Nb3 {[%emt 0:05:37]} Bxc3+ {[%emt 0:00:30]} 9. bxc3 {[%emt 0:00:03]} Qc7 {[%emt 0:00:13]} 10. c5 {[%emt 0:02:17]} dxc5 {[%emt 0:00:18]} 11. Bxc5 {[%emt 0:05:20]} Nf6 {[%emt 0:00:51]} 12. f3 {[%emt 0:02:02]} O-O {[%emt 0:00:32]} 13. Be2 {[%emt 0:04:10]} Nh5 {[%emt 0:01:00]} 14. O-O {[%emt 0:04:07]} Nf4 {[%emt 0:01:40]} 15. Re1 {[%emt 0:11:02]} Qe5 {[%emt 0:08:31]} 16. Qc1 {[%emt 0:10:05]} Qg5 {[%emt 0:31:15]} 17. g3 {[%emt 0:00:53]} Nxe2+ {[%emt 0:00:46]} 18. Rxe2 {[%emt 0:00:04]} Qh5 {[%emt 0:05:50]} 19. Qf4 {[%emt 0:08:35]} Be6 {[%emt 0:16:24]} 20. g4 {[%emt 0:09:37]} Qe5 {[%emt 0:00:58]} 21. Qxe5 {[%emt 0:00:58]} Nxe5 {[%emt 0:00:26]} 22. Kg2 {[%emt 0:02:28]} Nd3 {[%emt 0:06:06]} 23. Bxe7 {[%emt 0:03:43]} Nf4+ {[%emt 0:00:29]} 24. Kf2 {[%emt 0:00:34]} Rfe8 {[%emt 0:00:33]} 25. Bf6 {[%emt 0:00:51]} Nxe2 {[%emt 0:00:19]} 26. Kxe2 {[%emt 0:00:07]} Bc4+ {[%emt 0:04:17]} 27. Kd2 {[%emt 0:01:55]} Re6 {[%emt 0:00:39]} 28. g5 {[%emt 0:00:19]} Ra6 {[%emt 0:05:05]} 29. Kc2 {[%emt 0:00:13]} Rc8 {[%emt 0:01:40]} 30. Kb2 {[%emt 0:01:35]} Rcc6 {[%emt 0:06:43]} 31. Bd4 {[%emt 0:01:21]} Bxb3 {[%emt 0:01:37]} 32. Kxb3 {[%emt 0:00:29]} Ra5 {[%emt 0:00:19]} 33. h4 {[%emt 0:01:21]} Rb5+ {[%emt 0:00:54]} 34. Kc2 {[%emt 0:00:17]} Rb4 {[%emt 0:01:57]} 35. Kd3 {[%emt 0:01:48]} Rb2 {[%emt 0:00:33]} 36. Bxa7 {[%emt 0:02:30]} Ra6 {[%emt 0:00:42]} 37. Bd4 {[%emt 0:01:41]} Raxa2 {[%emt 0:00:13]} 38. Rd1 {[%emt 0:03:22]} b5 {[%emt 0:01:13]} 39. Be5 {[%emt 0:02:49]} Rf2 {[%emt 0:01:49]} 40. Ke3 {[%emt 0:00:28]} Rfe2+ {[%emt 0:02:00]} 41. Kf4 {[%emt 0:30:46]} Red2 {[%emt 0:02:14]} 42. Rb1 {[%emt 0:00:00]} Rab2 {[%emt 0:04:49]} 43. Ra1 {[%emt 0:00:00]} Ra2 {[%emt 0:05:48]} 1/2-1/2